fUSD/lending_fUSD_20240614
["ID","MTS","AMOUNT","RATE_DAILY","PERIOD"]
[329469995,1718382594733,-647.49,0.00024931,3]
[329469996,1718382594817,-500.0,0.00024931,3]
[329469997,1718382594935,-500.0,0.00024931,3]
[329469998,1718382595009,-500.0,0.00024931,3]
[329469999,1718382595076,-529.94,0.00024931,3]
[329470000,1718382595184,-500.0,0.00024931,3]
[329470001,1718382595252,-541.87333643,0.00024931,3]
[329470002,1718382595338,-500.0,0.00024931,3]
[329470003,1718382595404,-500.0,0.00024931,3]
[329470004,1718382595474,-500.0,0.00024931,2]
[329470005,1718382595550,-741.65,0.00024931,3]
[329470006,1718382595653,-500.0,0.00024931,3]
[329470007,1718382595725,-526.0,0.00024931,3]
[329470008,1718382595818,-367.81866819,0.00024931,3]
[329470009,1718382595948,-399.72494654,0.00024931,3]
[329470010,1718382595999,-500.0,0.00024931,3]
[329470011,1718382596070,-500.0,0.00024931,3]
[329470012,1718382596136,-1039.58,0.00024931,3]
[329470013,1718382596228,-500.0,0.00024931,3]
[329470014,1718382596304,-619.14,0.00024931,3]
[329470015,1718382596382,-563.65,0.00024931,3]
[329470016,1718382596458,-500.0,0.00024931,3]
[329470017,1718382596548,-500.0,0.00024931,3]
[329470018,1718382596646,-500.0,0.00024931,3]
[329470019,1718382596696,-500.0,0.00024931,3]
[329470020,1718382596793,-500.0,0.00024931,3]
[329470021,1718382596855,-500.0,0.00024931,3]
[329470022,1718382596931,-619.12344451,0.00024931,3]
[329470023,1718382597008,-500.0,0.00024931,3]
[329470024,1718382597069,-500.0,0.00024931,3]
[329470025,1718382597132,-500.0,0.00024931,3]
[329470026,1718382597211,-500.0,0.00024931,3]
[329470027,1718382597292,-1823.41,0.00024931,3]
[329470028,1718382597422,-500.0,0.00024931,3]
[329470029,1718382597561,-500.0,0.00024931,3]
[329470030,1718382597645,-500.0,0.00024931,3]
[329470031,1718382597721,-500.0,0.00024931,3]
[329470032,1718382597799,-500.0,0.00024931,3]
[329470033,1718382597914,-624.55,0.00024931,3]
[329470034,1718382597995,-606.88,0.00024931,3]
[329470035,1718382598106,-568.62332223,0.00024931,3]
[329470036,1718382598245,-500.0,0.00024931,3]
[329470037,1718382598362,-500.0,0.00024931,3]
[329470038,1718382598455,-500.0,0.00024931,3]
[329470039,1718382598555,-879.91,0.00024931,3]
[329470040,1718382598601,-500.0,0.00024931,3]
[329470041,1718382598717,-500.0,0.00024931,3]
[329470042,1718382598791,-500.0,0.00024931,3]
[329470043,1718382598884,-500.0,0.00024931,3]
[329470044,1718382598955,-673.4,0.00024931,3]
[329470045,1718382599037,-500.0,0.00024931,3]
[329470046,1718382599112,-780.74,0.00024931,3]
[329470047,1718382599171,-788.58,0.00024931,3]
[329470048,1718382599236,-593.08,0.00024931,3]
[329470049,1718382599333,-500.0,0.00024931,3]
[329470050,1718382599431,-669.21,0.00024931,3]
[329470051,1718382599522,-718.4,0.00024931,3]
[329470052,1718382599606,-500.0,0.00024931,3]
[329470053,1718382599673,-736.96,0.00024931,3]
[329470054,1718382599757,-500.0,0.00024931,3]
[329470055,1718382599818,-874.68,0.00024931,3]
[329470056,1718382599900,-500.0,0.00024931,3]
[329470057,1718382599981,-500.0,0.00024931,3]
[329470058,1718382600081,-500.0,0.00024931,3]
[329470059,1718382600173,-527.03,0.00024931,3]
[329470060,1718382600224,-507.96,0.00024931,3]
[329470061,1718382600317,-500.0,0.00024931,3]
[329470062,1718382600421,-1264.49,0.00024931,3]
[329470063,1718382600501,-500.0,0.00024931,3]
[329470064,1718382600558,-500.0,0.00024931,3]
[329470065,1718382600640,-500.0,0.00024931,3]
[329470066,1718382600752,-500.0,0.00024931,3]
[329470067,1718382600882,-1221.95,0.00024931,3]
[329470068,1718382601143,-500.0,0.00024931,3]
[329470069,1718382601231,-500.0,0.00024931,3]
[329470070,1718382601322,-1101.58,0.00024931,3]
[329470071,1718382601416,-500.0,0.00024931,3]
[329470072,1718382601490,-854.23,0.00024931,3]
[329470073,1718382601560,-1320.74,0.00024931,3]
[329470074,1718382601645,-500.0,0.00024931,3]
[329470075,1718382601728,-500.0,0.00024931,3]
[329470076,1718382601796,-500.0,0.00024931,3]
[329470077,1718382601862,-500.0,0.00024931,3]
[329470078,1718382601959,-500.0,0.00024931,3]
[329470079,1718382602016,-500.0,0.00024931,3]
[329470080,1718382602124,-500.0,0.00024931,3]
[329470081,1718382602229,-670.88,0.00024931,3]
[329470082,1718382602309,-574.95,0.00024931,3]
[329470083,1718382602357,-500.0,0.00024931,3]
[329470084,1718382602430,-2298.6456875,0.00024931,2]
[329470085,1718382602506,-500.0,0.00024931,3]
[329470086,1718382602588,-500.0,0.00024931,3]
[329470087,1718382602679,-500.0,0.00024931,3]
[329470088,1718382602729,-500.0,0.00024931,3]
[329470089,1718382602796,-500.0,0.00024931,3]
[329470090,1718382602850,-1734.14,0.00024931,3]
[329470091,1718382602912,-612.09,0.00024931,3]
[329470092,1718382602966,-500.0,0.00024931,3]
[329470093,1718382603045,-500.0,0.00024931,3]
[329470094,1718382603109,-500.0,0.00024931,3]
[329470095,1718382603157,-500.0,0.00024931,3]
[329470096,1718382603260,-673.58,0.00024931,3]
[329470097,1718382603331,-380.06341644,0.00024931,3]
[329470098,1718382603430,-633.38,0.00024931,3]
[329470099,1718382603477,-500.0,0.00024931,3]
[329470100,1718382603582,-538.68,0.00024931,3]
[329470101,1718382603648,-624.88,0.00024931,3]
[329470102,1718382603708,-1004.01,0.00024931,3]
[329470103,1718382603789,-597.68,0.00024931,3]
[329470104,1718382603850,-733.92,0.00024931,3]
[329470105,1718382603961,-500.0,0.00024931,3]
[329470106,1718382604020,-500.0,0.00024931,3]
[329470107,1718382604140,-510.37,0.00024931,3]
[329470108,1718382604212,-500.0,0.00024931,3]
[329470109,1718382604344,-500.0,0.00024931,3]
[329470110,1718382604442,-763.72,0.00024931,3]
[329470111,1718382604552,-521.38,0.00024931,3]
[329470112,1718382604654,-500.0,0.00024931,3]
[329470113,1718382604772,-500.0,0.00024931,3]
[329470114,1718382604842,-500.0,0.00024931,3]
[329470115,1718382604938,-500.0,0.00024931,3]
[329470116,1718382605022,-500.0,0.00024931,3]
[329470117,1718382605076,-500.0,0.00024931,3]
[329470118,1718382605176,-618.42,0.00024931,3]
[329470119,1718382605290,-540.25,0.00024931,3]
[329470120,1718382605378,-500.0,0.00024931,3]
[329470121,1718382605466,-500.0,0.00024931,3]
[329470122,1718382605571,-500.0,0.00024931,3]
[329470123,1718382605649,-500.0,0.00024931,3]
[329470124,1718382605779,-500.0,0.00024931,3]
[329470125,1718382605887,-500.0,0.00024931,3]
[329470126,1718382605995,-500.0,0.00024931,3]
[329470127,1718382606075,-640.05,0.00024931,3]
[329470128,1718382606160,-590.79,0.00024931,3]
[329470129,1718382606226,-500.0,0.00024931,3]
[329470130,1718382606298,-500.0,0.00024931,3]
[329470131,1718382606353,-500.0,0.00024931,3]
[329470132,1718382606413,-500.0,0.00024931,3]
[329470133,1718382606531,-899.12,0.00024931,3]
[329470134,1718382606602,-1087.94,0.00024931,3]
[329470135,1718382606675,-500.0,0.00024931,3]
[329470136,1718382606771,-500.0,0.00024931,3]
[329470137,1718382606871,-619.45,0.00024931,3]
[329470138,1718382606938,-511.68,0.00024931,3]
[329470139,1718382607012,-1789.44,0.00024931,3]
[329470140,1718382607178,-500.0,0.00024931,3]
[329470141,1718382607252,-501.34,0.00024931,3]
[329470142,1718382607344,-500.0,0.00024931,3]
[329470143,1718382607400,-713.67,0.00024931,3]
[329470144,1718382607475,-500.0,0.00024931,3]
[329470145,1718382607578,-500.0,0.00024931,3]
[329470146,1718382607654,-548.11,0.00024931,3]
[329470147,1718382607734,-500.0,0.00024931,3]
[329470148,1718382607800,-500.0,0.00024931,3]
[329470149,1718382607899,-20815.16,0.00024931,3]
[329470150,1718382607958,-500.0,0.00024931,3]
[329470151,1718382608056,-763.77,0.00024931,3]
[329470152,1718382608134,-500.0,0.00024931,3]
[329470153,1718382608189,-500.0,0.00024931,3]
[329470154,1718382608515,-1084.12,0.00024931,3]
[329470155,1718382608595,-500.0,0.00024931,3]
[329470156,1718382608647,-500.0,0.00024931,3]
[329470157,1718382608738,-439.20223746,0.00024931,3]
[329470158,1718382608841,-500.0,0.00024931,3]
[329470159,1718382608918,-1683.92,0.00024931,3]
[329470160,1718382608986,-1076.42,0.00024931,3]
[329470161,1718382609086,-500.0,0.00024931,3]
[329470162,1718382609200,-500.0,0.00024931,3]
[329470163,1718382609259,-3457.17,0.00024931,3]
[329470164,1718382609354,-1368.12285,0.00024931,2]
[329470165,1718382609427,-500.0,0.00024931,3]
[329470166,1718382609501,-500.0,0.00024931,3]
[329470167,1718382609559,-500.0,0.00024931,3]
[329470168,1718382609643,-512.15,0.00024931,3]
[329470169,1718382609712,-500.0,0.00024931,3]
[329470170,1718382609778,-611.46,0.00024931,3]
[329470171,1718382609853,-500.0,0.00024931,3]
[329470172,1718382609943,-3042.23,0.00024931,3]
[329470173,1718382610011,-914.22,0.00024931,3]
[329470174,1718382610082,-573.96,0.00024931,3]
[329470175,1718382610159,-517.33,0.00024931,3]
[329470176,1718382610235,-1909.78,0.00024931,3]
[329470177,1718382610297,-831.61,0.00024931,3]
[329470178,1718382610379,-662.73,0.00024931,3]
[329470179,1718382610440,-500.0,0.00024931,3]
[329470180,1718382610529,-547.24204218,0.00024931,3]
[329470181,1718382610604,-500.0,0.00024931,3]
[329470182,1718382610687,-500.0,0.00024931,3]
[329470183,1718382610748,-622.18,0.00024931,3]
[329470184,1718382610826,-606.5,0.00024931,3]
[329470185,1718382610916,-500.0,0.00024931,3]
[329470186,1718382610984,-500.0,0.00024931,3]
[329470187,1718382611059,-500.0,0.00024931,3]
[329470188,1718382611123,-996.64,0.00024931,3]
[329470189,1718382611192,-568.32,0.00024931,3]
[329470190,1718382611282,-697.2,0.00024931,3]
[329470191,1718382611340,-849.21,0.00024931,3]
[329470192,1718382611414,-889.26,0.00024931,3]
[329470193,1718382611496,-500.0,0.00024931,3]
[329470194,1718382611590,-14486.89,0.00024931,3]
[329470195,1718382611707,-500.0,0.00024931,3]
[329470196,1718382611810,-5686.07,0.00024931,3]
[329470197,1718382611915,-781.91,0.00024931,3]
[329470198,1718382612036,-500.0,0.00024931,3]
[329470199,1718382612141,-1018.61,0.00024931,3]
[329470200,1718382612216,-585.92,0.00024931,3]
[329470201,1718382612315,-500.0,0.00024931,3]
[329470202,1718382612390,-2904.62,0.00024931,3]
[329470203,1718382612466,-510.01,0.00024931,3]
[329470204,1718382612532,-500.0,0.00024931,3]
[329470205,1718382612681,-500.0,0.00024931,3]
[329470206,1718382612757,-15237.24,0.00024931,3]
[329470207,1718382612854,-612.61,0.00024931,3]
[329470208,1718382612939,-1011.12,0.00024931,3]
[329470209,1718382613042,-1390.77,0.00024931,3]
[329470210,1718382613130,-774.15,0.00024931,3]
[329470211,1718382613207,-694.51,0.00024931,3]
[329470212,1718382613315,-500.0,0.00024931,3]
[329470213,1718382613443,-500.0,0.00024931,3]
[329470214,1718382613511,-6213.65,0.00024931,3]
[329470215,1718382613577,-500.0,0.00024931,3]
[329470216,1718382613653,-500.0,0.00024931,3]
[329470217,1718382613724,-717.84,0.00024931,3]
[329470218,1718382613785,-500.0,0.00024931,3]
[329470219,1718382613855,-574.18,0.00024931,3]
[329470220,1718382613949,-1073.14,0.00024931,3]
[329470221,1718382614034,-1385.47,0.00024931,3]
[329470222,1718382614142,-500.0,0.00024931,3]
[329470223,1718382614205,-2154.52,0.00024931,3]
[329470224,1718382614287,-1203.6,0.00024931,3]
[329470225,1718382614396,-2128.36,0.00024931,3]
[329470226,1718382614459,-500.0,0.00024931,3]
[329470227,1718382614591,-813.3,0.00024931,3]
[329470228,1718382614709,-679.7,0.00024931,3]
[329470229,1718382614844,-589.82,0.00024931,3]
[329470230,1718382614968,-1485.29,0.00024931,3]
[329470231,1718382615039,-518.56,0.00024931,3]
[329470232,1718382615098,-500.0,0.00024931,3]
[329470233,1718382615213,-6705.15,0.00024931,3]
[329470234,1718382615289,-500.0,0.00024931,3]
[329470235,1718382615373,-1803.99,0.00024931,3]
[329470236,1718382615449,-1009.01,0.00024931,3]
[329470237,1718382615552,-500.0,0.00024931,3]
[329470238,1718382615626,-1256.75,0.00024931,3]
[329470239,1718382615749,-875.23,0.00024931,3]
[329470240,1718382616038,-447.64363127,0.00024931,3]
[329470241,1718382616139,-1971.49,0.00024931,3]
[329470242,1718382616227,-500.0,0.00024931,3]
[329470243,1718382616321,-2119.55,0.00024931,3]
[329470244,1718382616383,-555.05,0.00024931,7]
[329470245,1718382616507,-500.0,0.00024931,3]
[329470246,1718382616589,-719.59,0.00024931,3]
[329470247,1718382616693,-617.39,0.00024931,3]
[329470248,1718382616770,-500.0,0.00024931,3]
[329470249,1718382616876,-6051.71,0.00024931,3]
[329470250,1718382616943,-500.0,0.00024931,3]
[329470251,1718382616997,-500.0,0.00024931,3]
[329470252,1718382617063,-652.05,0.00024931,3]
[329470253,1718382617121,-2728.66,0.00024931,3]
[329470254,1718382617194,-883.82,0.00024931,3]
[329470255,1718382617283,-500.0,0.00024931,3]
[329470256,1718382617344,-5535.36,0.00024931,3]
[329470257,1718382617395,-500.0,0.00024931,3]
[329470258,1718382617449,-655.54,0.00024931,3]
[329470259,1718382617513,-500.0,0.00024931,3]
[329470260,1718382617561,-500.0,0.00024931,3]
[329470261,1718382617645,-9561.96,0.00024931,3]
[329470262,1718382617714,-675.91,0.00024931,3]
[329470263,1718382617830,-627.05,0.00024931,3]
[329470264,1718382617918,-4005.23,0.00024931,3]
[329470265,1718382618028,-500.0,0.00024931,3]
[329470266,1718382618151,-3357.65,0.00024931,3]
[329470267,1718382618250,-500.0,0.00024931,3]
[329470268,1718382618340,-1343.73,0.00024931,3]
[329470269,1718382618399,-809.51,0.00024931,3]
[329470270,1718382618473,-4519.59,0.00024931,3]
[329470271,1718382618551,-500.0,0.00024931,3]
[329470272,1718382618642,-2215.06,0.00024931,3]
[329470273,1718382618716,-1739.3,0.00024931,3]
[329470274,1718382618777,-723.48,0.00024931,3]
[329470275,1718382618863,-500.0,0.00024931,3]
[329470276,1718382618929,-500.0,0.00024931,3]
[329470277,1718382619072,-1992.44,0.00024931,3]
[329470278,1718382619201,-500.0,0.00024931,3]
[329470279,1718382619298,-772.64,0.00024931,3]
[329470280,1718382619363,-500.0,0.00024931,3]
[329470281,1718382619437,-27747.66,0.00024931,3]
[329470282,1718382619511,-2516.05,0.00024931,3]
[329470283,1718382619574,-151.0,0.00024931,7]
[329470284,1718382619642,-151.0,0.00024931,7]
[329470285,1718382619713,-500.0,0.00024931,3]
[329470286,1718382619778,-500.0,0.00024931,3]
[329470287,1718382619861,-1783.93,0.00024931,3]
[329470288,1718382619954,-500.0,0.00024931,3]
[329470289,1718382620008,-1901.93,0.00024931,3]
[329470290,1718382620080,-247.17,0.00024931,3]
[329470291,1718382620207,-835.68,0.00024931,3]
[329470292,1718382620285,-555.72,0.00024931,3]
[329470293,1718382620360,-695.78,0.00024931,3]
[329470294,1718382620435,-500.0,0.00024931,3]
[329470295,1718382620507,-993.02,0.00024931,3]
[329470296,1718382620560,-1219.21,0.00024931,3]
[329470297,1718382620672,-1713.33,0.00024931,3]
[329470298,1718382620752,-500.0,0.00024931,3]
[329470299,1718382620827,-598.03,0.00024931,3]
[329470300,1718382620904,-14613.87,0.00024931,3]
[329470301,1718382622526,-854.03,0.00024931,3]
[329470302,1718382622602,-500.0,0.00024931,3]
[329470303,1718382622661,-664.58,0.00024931,3]
[329470304,1718382622755,-3104.39,0.00024931,3]
[329470305,1718382622821,-769.77,0.00024931,3]
[329470306,1718382622898,-2415.25,0.00024931,3]
[329470307,1718382622951,-1827.85,0.00024931,3]
[329470308,1718382623022,-500.0,0.00024931,3]
[329470309,1718382623148,-1720.0,0.00024931,3]
[329470310,1718382623240,-1564.92,0.00024931,3]
[329470311,1718382623308,-500.0,0.00024931,3]
[329470312,1718382623395,-500.0,0.00024931,3]
[329470313,1718382623444,-854.39,0.00024931,3]
[329470314,1718382623547,-6387.15,0.00024931,3]
[329470315,1718382623649,-500.0,0.00024931,3]
[329470316,1718382623746,-500.0,0.00024931,3]
[329470317,1718382623837,-13294.24,0.00024931,3]
[329470318,1718382623905,-1580.61,0.00024931,3]
[329470319,1718382624026,-1627.07,0.00024931,3]
[329470320,1718382624156,-500.0,0.00024931,3]
[329470321,1718382624258,-500.0,0.00024931,3]
[329470322,1718382624376,-3930.51,0.00024931,3]
[329470323,1718382624461,-729.5,0.00024931,3]
[329470324,1718382624518,-2355.57,0.00024931,3]
[329470325,1718382624591,-500.0,0.00024931,3]
[329470326,1718382624866,-500.0,0.00024931,3]
[329470327,1718382624932,-19021.1,0.00024931,3]
[329470328,1718382625010,-782.99,0.00024931,3]
[329470329,1718382625093,-500.0,0.00024931,3]
[329470330,1718382625165,-636.02,0.00024931,3]
[329470331,1718382625226,-1333.68,0.00024931,3]
[329470332,1718382625332,-625.4,0.00024931,3]
[329470333,1718382625408,-601.31,0.00024931,3]
[329470334,1718382625469,-583.12,0.00024931,3]
[329470335,1718382625539,-1242.43,0.00024931,3]
[329470336,1718382625586,-924.02,0.00024931,3]
[329470337,1718382625638,-500.0,0.00024931,3]
[329470338,1718382625700,-957.85,0.00024931,3]
[329470339,1718382625759,-1500.69,0.00024931,3]
[329470340,1718382625811,-500.0,0.00024931,3]
[329470341,1718382625887,-4281.66,0.00024931,3]
[329470342,1718382625979,-563.41,0.00024931,3]
[329470343,1718382626045,-1389.67,0.00024931,3]
[329470344,1718382626146,-507.25,0.00024931,3]
[329470345,1718382626210,-500.0,0.00024931,3]
[329470346,1718382626281,-500.0,0.00024931,3]
[329470347,1718382626353,-1388.05,0.00024931,3]
[329470348,1718382626433,-1617.19,0.00024931,3]
[329470349,1718382626501,-531.36,0.00024931,3]
[329470350,1718382626572,-500.0,0.00024931,3]
[329470351,1718382626645,-907.64,0.00024931,3]
[329470352,1718382626745,-666.51,0.00024931,3]
[329470353,1718382626819,-500.0,0.00024931,3]
[329470354,1718382626881,-627.2,0.00024931,3]
[329470355,1718382626930,-4315.64,0.00024931,3]
[329470356,1718382627004,-883.62,0.00024931,3]
[329470357,1718382627107,-6461.18,0.00024931,3]
[329470358,1718382627181,-500.0,0.00024931,3]
[329470359,1718382627279,-566.98,0.00024931,3]
[329470360,1718382627340,-500.0,0.00024931,3]
[329470361,1718382627417,-5001.5,0.00024931,3]
[329470362,1718382627495,-782.35,0.00024931,3]
[329470363,1718382627565,-500.0,0.00024931,3]
[329470364,1718382627631,-500.0,0.00024931,3]
[329470365,1718382627741,-1140.05,0.00024931,3]
[329470366,1718382627828,-2579.99,0.00024931,3]
[329470367,1718382627947,-2308.45,0.00024931,3]
[329470368,1718382628026,-1162.61,0.00024931,3]
[329470369,1718382628103,-151.0,0.00024931,7]
[329470370,1718382628181,-3943.94,0.00024931,3]
[329470371,1718382628262,-500.0,0.00024931,3]
[329470372,1718382628358,-584.26,0.00024931,3]
[329470373,1718382628429,-500.0,0.00024931,3]
[329470374,1718382628534,-500.0,0.00024931,3]
[329470375,1718382628592,-633.7,0.00024931,3]
[329470376,1718382628664,-500.0,0.00024931,3]
[329470377,1718382628774,-632.74,0.00024931,3]
[329470378,1718382628824,-7632.11,0.00024931,3]
[329470379,1718382628891,-500.0,0.00024931,3]
[329470380,1718382628971,-500.0,0.00024931,3]
[329470381,1718382629078,-1646.1,0.00024931,3]
[329470382,1718382629202,-808.35,0.00024931,3]
[329470383,1718382629304,-5505.8,0.00024931,3]
[329470384,1718382629387,-2409.52,0.00024931,3]
[329470385,1718382629484,-500.0,0.00024931,3]
[329470386,1718382629557,-9934.23,0.00024931,3]
[329470387,1718382629631,-500.0,0.00024931,3]
[329470388,1718382629706,-500.0,0.00024931,3]
[329470389,1718382629837,-500.0,0.00024931,3]
[329470390,1718382629933,-718.69,0.00024931,3]
[329470391,1718382630024,-1962.95,0.00024931,3]
[329470392,1718382630086,-500.0,0.00024931,3]
[329470393,1718382630182,-10300.99,0.00024931,3]
[329470394,1718382630280,-7744.77,0.00024931,3]
[329470395,1718382630412,-10981.89,0.00024931,3]
[329470396,1718382630465,-955.12,0.00024931,3]
[329470397,1718382630545,-9214.75,0.00024931,3]
[329470398,1718382630628,-647.90740524,0.00024931,3]
[329470399,1718382630702,-500.0,0.00024931,3]
[329470400,1718382630818,-1760.27,0.00024931,3]
[329470401,1718382630890,-545.48,0.00024931,3]
[329470402,1718382630975,-1205.04,0.00024931,3]
[329470403,1718382631089,-765.24,0.00024931,3]
[329470404,1718382631193,-676.49,0.00024931,3]
[329470405,1718382631255,-2190.75,0.00024931,3]
[329470406,1718382631439,-500.0,0.00024931,3]
[329470407,1718382631582,-515.03123414,0.00024931,3]
[329470408,1718382631767,-10131.09438,0.00024932,2]
[329470409,1718382631907,-175.68185,0.00024932,2]
[329470410,1718382632049,-411.056166,0.00024932,2]
[329470411,1718382632213,-241.360444,0.00024932,2]
[329470412,1718382632343,-205.528083,0.00024932,2]
[329470413,1718382632740,-467.52895994,0.00024935,2]
[329470414,1718382632880,-150.0,0.00024937,2]
[329470415,1718382633025,-150.066606,0.00024948,2]
[329470416,1718382633165,-154.364892,0.00024948,2]
[329470417,1718382633361,-213.066951,0.00024948,2]
[329470418,1718382633514,-503.58942,0.00024948,2]
[329470419,1718382633702,-303.412494,0.00024948,2]
[329470420,1718382633893,-10902.822457,0.00024948,2]
[329470421,1718382634043,-513.820208,0.00024948,2]
[329470422,1718382634299,-208.064904,0.00024948,2]
[329470423,1718382634442,-528.398887,0.00024948,2]
[329470424,1718382634576,-513.820208,0.00024948,2]
[329470425,1718382634709,-170.384923,0.00024948,2]
[329470433,1718382634848,-190.46182,0.00024948,2]
[329470441,1718382635022,-171.666384,0.00024948,2]
[329470452,1718382635224,-268.764438,0.00024948,2]
[329470457,1718382635421,-198.002389,0.00024948,2]
[329470462,1718382635537,-441.065119,0.00024948,2]
[329470465,1718382635674,-18161.918452,0.00024948,2]
[329470466,1718382635858,-195.896622,0.00024948,2]
[329470467,1718382636048,-154.533981,0.00024948,2]
[329470468,1718382636192,-589.964001,0.00024948,2]
[329470469,1718382636404,-1521.506143,0.00024948,2]
[329470470,1718382636632,-176.826941,0.00024948,2]
[329470471,1718382636820,-183.654433,0.00024948,2]
[329470478,1718382636997,-822.112333,0.00024948,2]
[329470486,1718382637152,-189.769808,0.00024948,2]
[329470495,1718382637424,-492.721183,0.00024948,2]
[329470498,1718382637590,-150.0,0.00024953,2]
[329470499,1718382637794,-161.2232412,0.00024964,2]
[329470500,1718382637996,-400.0,0.0002497,2]
[329470501,1718382638121,-400.0,0.0002497,2]
[329470502,1718382638274,-700.0,0.0002497,2]
[329470503,1718382638429,-1135.11913575,0.0002497,2]
[329470504,1718382638588,-156.8,0.0002498,15]
[329470505,1718382638718,-50180.0422841,0.00024982,2]
[329470506,1718382638856,-61973.0580643,0.00024982,2]
[329470507,1718382639028,-2850.3206525,0.00024983,2]
[329470508,1718382639176,-3401.9956175,0.00024983,2]
[329470509,1718382639324,-3953.6705825,0.00024983,2]
[329470510,1718382639469,-4505.3455475,0.00024983,2]
[329470511,1718382639609,-5057.0205125,0.00024983,2]
[329470512,1718382639761,-73766.0738445,0.00024983,2]
[329470513,1718382639981,-85559.0896248,0.00024983,2]
[329470514,1718382640121,-97352.105405,0.00024983,2]
[329470515,1718382640253,-151.0,0.00024983,7]
[329470516,1718382640393,-229.43757501,0.00024989,2]
[329470517,1718382640531,-150.5,0.0002499,15]
[329470518,1718382640699,-239.2797491,0.00024994,2]
[329470529,1718382640861,-1076.78933763,0.00024999,3]
[329470538,1718382641076,-1799.92,0.00024999,3]
[329470547,1718382641223,-1799.92,0.00024999,3]
[329470555,1718382641387,-1799.92,0.00024999,3]
[329470564,1718382641601,-1799.92,0.00024999,3]
[329470570,1718382641774,-1799.92,0.00024999,3]
[329470576,1718382641934,-1799.92,0.00024999,3]
[329470577,1718382642174,-151.0,0.00024999,7]
[329470578,1718382642322,-281876.39032392,0.00025,13]
[329470751,1718382713897,-679.50016874,0.00017259,2]
[329470752,1718382713941,-177.19,0.00018498,2]
[329470753,1718382713965,-300.0,0.00019725,2]
[329470754,1718382713996,-226.78109354,0.000201,2]
[329470755,1718382714032,-403.04460759,0.00021336,2]
[329470756,1718382714044,-420.0,0.00021484,2]
[329470757,1718382714058,-338.26,0.00021484,2]
[329470758,1718382714106,-200.0,0.00022103,2]
[329470759,1718382714125,-163.74706766,0.00023078,2]
[329470760,1718382714164,-7720.81,0.00023078,2]
[329470761,1718382714208,-250.0,0.00023079,2]
[329470762,1718382714227,-841.13,0.00023115,2]
[329470763,1718382714255,-23900.0,0.00023148,2]
[329470764,1718382714268,-2500.0,0.00023498,2]
[329470765,1718382714284,-158.40905606,0.00023899,2]
[329470766,1718382714298,-499.99,0.000239,2]
[329470767,1718382714334,-10000.0,0.00024009,2]
[329470768,1718382714359,-170.01053089,0.00024066,2]
[329470769,1718382714377,-155.36187119,0.00024098,2]
[329470770,1718382714406,-2058.7735572,0.000241,2]
[329470771,1718382714432,-2052.79833825,0.000241,2]
[329470772,1718382714455,-4190.54488205,0.00024101,2]
[329470773,1718382714556,-3243.22514174,0.00024107,10]
[329470774,1718382714596,-397.50335552,0.00024107,2]